bitfinex-derivatives/quotes_BTCF0:USTF0_20240817
["timestamp","ask_amount","ask_price","bid_price","bid_amount"]
[1723914679561,0.3608,59640.0,59639.0,0.05011232]
[1723914679764,0.062869,59639.0,59638.0,0.05011418]
[1723914679963,0.685669,59639.0,59638.0,0.05011418]
[1723914680556,0.06287,59638.0,59637.0,0.05011418]
[1723914680766,0.58287,59638.0,59637.0,0.05011418]
[1723914681161,0.58287,59638.0,59633.0,0.06682147]
[1723914681162,0.52,59638.0,59633.0,0.06682147]
[1723914681361,0.062876,59633.0,59632.0,0.062876]
[1723914681565,0.4536,59634.0,59632.0,0.11295506]
[1723914681566,0.516475,59634.0,59632.0,0.11295506]
[1723914681863,0.423676,59633.0,59632.0,0.05007906]
[1723914682068,0.6008,59633.0,59630.0,0.07275222]
[1723914682369,0.155678,59631.0,59630.0,0.062878]
[1723914683763,0.155678,59631.0,59630.0,0.1129257]
[1723914683967,0.155678,59631.0,59630.0,0.076878]
[1723914684172,0.062878,59631.0,59630.0,0.014]
[1723914684365,0.155678,59631.0,59630.0,0.014]
[1723914684964,0.478556,59631.0,59630.0,0.026]
[1723914685160,0.322878,59631.0,59630.0,0.026]
[1723914685360,0.415678,59631.0,59630.0,0.026]
[1723914685771,0.478556,59631.0,59630.0,0.026]
[1723914687171,1.381636,59631.0,59630.0,0.026]
[1723914687568,0.415678,59631.0,59630.0,0.026]
[1723914688666,0.478556,59631.0,59630.0,0.026]
[1723914691378,0.839356,59631.0,59630.0,0.026]
[1723914694279,0.683678,59631.0,59630.0,0.026]
[1723914694480,0.683678,59631.0,59630.0,0.1188]
[1723914694782,0.683678,59631.0,59630.0,0.181679]
[1723914695476,0.6208,59631.0,59630.0,0.181679]
[1723914695871,0.26,59631.0,59630.0,0.542479]
[1723914696066,0.2348,59636.0,59630.0,0.542479]
[1723914696281,0.4648,59636.0,59635.0,0.155673]
[1723914697271,0.3048,59636.0,59635.0,0.155673]
[1723914697578,0.3048,59636.0,59635.0,0.070873]
[1723914697977,0.3058,59636.0,59635.0,0.070873]
[1723914698682,0.3048,59636.0,59635.0,0.070873]
[1723914698880,0.3058,59636.0,59635.0,0.169673]
[1723914699085,0.3058,59636.0,59635.0,0.530473]
[1723914699086,0.001,59636.0,59635.0,0.530473]
[1723914699269,0.001,59636.0,59635.0,0.169673]
[1723914699872,0.001,59636.0,59635.0,0.530473]
[1723914700979,0.001,59636.0,59635.0,0.5805207]
[1723914701173,0.001,59636.0,59635.0,0.530473]
[1723914701784,0.001,59636.0,59635.0,0.5805207]
[1723914701984,0.001,59636.0,59635.0,0.530473]
[1723914703285,0.001,59636.0,59635.0,0.5805207]
[1723914704483,0.001,59636.0,59635.0,0.530473]
[1723914705881,0.001,59636.0,59635.0,0.169673]
[1723914706077,0.001,59636.0,59635.0,0.2196614]
[1723914706779,0.001,59636.0,59635.0,0.1268614]
[1723914706976,0.0938,59636.0,59635.0,0.076873]
[1723914707480,0.156672,59636.0,59635.0,0.1268614]
[1723914707681,0.156672,59636.0,59635.0,0.076873]
[1723914708387,0.156672,59636.0,59629.0,0.06682147]
[1723914708388,0.062873,59635.0,59627.0,0.0499884]
[1723914708687,0.062885,59624.0,59623.0,0.001]
[1723914708886,0.062885,59624.0,59618.0,0.0928]
[1723914708887,0.062887,59622.0,59620.0,0.1128774]
[1723914709188,0.062888,59621.0,59620.0,0.062889]
[1723914709395,0.155688,59621.0,59620.0,0.062889]
[1723914709592,0.062889,59620.0,59617.0,0.062892]
[1723914710291,0.062889,59620.0,59618.0,0.062891]
[1723914710789,0.062889,59620.0,59619.0,0.06289]
[1723914712291,0.063889,59620.0,59619.0,0.07289]
[1723914712789,0.064889,59620.0,59619.0,0.01]
[1723914713379,0.063889,59620.0,59619.0,0.021]
[1723914713580,0.064889,59620.0,59619.0,0.021]
[1723914714385,0.064889,59620.0,59619.0,0.011]
[1723914714687,0.064889,59620.0,59619.0,0.025]
[1723914718383,0.214889,59620.0,59619.0,0.025]
[1723914718797,0.324889,59620.0,59619.0,0.025]
[1723914723606,0.324889,59620.0,59619.0,0.08789]
[1723914726707,0.262,59620.0,59619.0,0.08789]
[1723914726997,0.324889,59620.0,59619.0,0.08789]
[1723914728800,0.112,59620.0,59619.0,0.08789]
[1723914729207,0.262,59620.0,59619.0,0.08789]
[1723914729797,0.324889,59620.0,59619.0,0.08789]
[1723914731392,0.324889,59620.0,59619.0,0.025]
[1723914734009,0.324889,59620.0,59619.0,0.08789]
[1723914736604,0.324889,59620.0,59619.0,0.1378784]
[1723914737403,0.324889,59620.0,59619.0,0.08789]
[1723914738410,0.324889,59620.0,59619.0,0.15471147]
[1723914739010,0.262,59620.0,59619.0,0.15471147]
[1723914739202,0.112,59620.0,59619.0,0.15471147]
[1723914739606,0.112,59620.0,59619.0,0.08789]
[1723914741908,0.012,59620.0,59619.0,0.36202634]
[1723914742107,0.012,59620.0,59619.0,0.29935368]
[1723914742308,0.012,59620.0,59619.0,0.21566594]
[1723914742819,0.012,59620.0,59619.0,0.29935279]
[1723914743114,0.012,59620.0,59619.0,0.08789]
[1723914745613,0.162,59620.0,59619.0,0.08789]
[1723914746712,0.224889,59620.0,59619.0,0.08789]
[1723914746911,0.585689,59620.0,59616.0,0.06695271]
[1723914747109,0.585689,59620.0,59615.0,0.00014877]
[1723914747110,0.062893,59616.0,59615.0,0.00014877]
[1723914747316,0.485786,59616.0,59615.0,0.00014877]
[1723914747524,0.422893,59616.0,59615.0,0.00014877]
[1723914748222,0.422893,59616.0,59615.0,0.01414877]
[1723914748618,0.423893,59616.0,59615.0,0.01414877]
[1723914749914,0.424893,59616.0,59615.0,0.01414877]
[1723914750121,0.928133,59616.0,59615.0,0.01414877]
[1723914751513,0.424893,59616.0,59615.0,0.0643696]
[1723914752024,0.424893,59616.0,59615.0,0.01414877]
[1723914757627,0.487786,59616.0,59615.0,0.01414877]
[1723914758125,0.424893,59616.0,59615.0,0.01414877]
[1723914758712,0.487786,59616.0,59615.0,0.01414877]
[1723914759428,0.424893,59616.0,59615.0,0.01414877]
[1723914761118,0.487786,59616.0,59615.0,0.01414877]
[1723914761524,0.424893,59616.0,59615.0,0.01414877]
[1723914761926,0.487786,59616.0,59615.0,0.01414877]
[1723914762615,0.656893,59616.0,59615.0,0.01414877]
[1723914762819,0.719786,59616.0,59615.0,0.01414877]
[1723914763624,0.656893,59616.0,59615.0,0.01414877]
[1723914764227,1.160133,59616.0,59615.0,0.01414877]
[1723914764427,1.62317477,59616.0,59615.0,0.00448907]
[1723914764628,1.56028177,59616.0,59615.0,0.00448907]
[1723914765229,1.62317477,59616.0,59615.0,0.00448907]
[1723914765430,1.56028177,59616.0,59615.0,0.00448907]
[1723914765733,1.62317477,59616.0,59615.0,0.00448907]
[1723914766034,1.56028177,59616.0,59615.0,0.00448907]
[1723914766420,1.22317477,59616.0,59615.0,0.00448907]
[1723914766620,1.16028177,59616.0,59615.0,0.00448907]
[1723914766820,1.22317477,59616.0,59615.0,0.00448907]
[1723914767034,1.62317477,59616.0,59615.0,0.00448907]
[1723914767534,1.68606777,59616.0,59615.0,0.00448907]
[1723914768834,1.93850317,59616.0,59615.0,0.00448907]
[1723914769136,0.062904,59607.0,59599.0,0.05022083]
[1723914769335,0.06291,59600.0,59599.0,0.05022083]
[1723914769630,0.31291,59600.0,59598.0,0.111312]
[1723914769827,0.31291,59600.0,59598.0,0.16153283]
[1723914770227,0.31291,59600.0,59599.0,0.062911]
[1723914770631,0.31391,59600.0,59599.0,0.062911]
[1723914772042,0.251,59600.0,59595.0,0.06695271]
[1723914772340,0.062913,59598.0,59597.0,0.05012902]
[1723914772527,0.062913,59598.0,59596.0,0.05012902]
[1723914772528,0.342913,59598.0,59596.0,0.05012902]
[1723914773333,0.062914,59597.0,59596.0,0.05012902]
[1723914773638,0.062915,59596.0,59595.0,0.11304402]
[1723914773834,0.062915,59596.0,59595.0,0.062915]
[1723914773835,0.352915,59596.0,59595.0,0.062915]
[1723914774833,0.062916,59595.0,59594.0,0.10002902]
[1723914775032,0.352916,59595.0,59594.0,0.10002902]
[1723914775928,0.445716,59595.0,59594.0,0.10002902]
[1723914776137,0.445716,59595.0,59594.0,0.10003812]
[1723914776336,0.446716,59595.0,59594.0,0.10003812]
[1723914776540,0.446716,59595.0,59594.0,0.0499]
[1723914776730,0.447716,59595.0,59594.0,0.0499]
[1723914777135,0.062917,59594.0,59593.0,0.062918]
[1723914777329,0.312917,59594.0,59593.0,0.062918]
[1723914778034,0.212917,59594.0,59593.0,0.423718]
[1723914778435,0.212917,59594.0,59593.0,0.062918]
[1723914778737,0.213917,59594.0,59593.0,0.062918]
[1723914778929,0.214917,59594.0,59593.0,0.062918]
[1723914779427,0.214917,59594.0,59593.0,0.49067071]
[1723914779633,0.214917,59594.0,59593.0,0.062918]
[1723914780729,0.214917,59594.0,59593.0,0.423718]
[1723914780931,0.214917,59594.0,59593.0,0.49067071]
[1723914781442,0.214917,59594.0,59593.0,0.423718]
[1723914781640,0.214917,59594.0,59589.0,0.05918743]
[1723914781641,0.06292,59591.0,59589.0,0.11635271]
[1723914781842,0.06292,59591.0,59590.0,0.1130479]
[1723914782027,0.15572,59591.0,59590.0,0.1130479]
[1723914782226,0.15572,59591.0,59590.0,0.06292]
[1723914783435,0.15672,59591.0,59590.0,0.06292]
[1723914783841,0.06392,59591.0,59590.0,0.06292]
[1723914785642,0.06492,59591.0,59590.0,0.06292]
[1723914786937,0.08492153,59591.0,59590.0,0.06292]
[1723914790532,0.08492153,59591.0,59589.0,0.0494]
[1723914790533,0.062921,59590.0,59589.0,0.0494]
[1723914791735,0.202921,59590.0,59589.0,0.0494]
[1723914792350,0.203921,59590.0,59589.0,0.0494]
[1723914792556,0.213921,59590.0,59589.0,0.0494]
[1723914792947,0.214921,59590.0,59589.0,0.0494]
[1723914794261,0.214921,59590.0,59589.0,0.0501279]
[1723914794948,0.214921,59590.0,59588.0,0.062923]
[1723914794949,0.062922,59589.0,59588.0,0.1130509]
[1723914795157,0.232922,59589.0,59588.0,0.062923]
[1723914795457,0.232922,59589.0,59588.0,0.11309726]
[1723914795956,0.232922,59589.0,59588.0,0.062923]
[1723914796143,0.233922,59589.0,59588.0,0.062923]
[1723914796547,0.234922,59589.0,59588.0,0.062923]
[1723914796744,0.264922,59589.0,59588.0,0.062923]
[1723914798270,0.062924,59587.0,59586.0,0.06695271]
[1723914798464,0.062925,59586.0,59585.0,0.06695271]
[1723914798671,0.062926,59585.0,59584.0,0.06695271]
[1723914798970,0.362926,59585.0,59584.0,0.06695271]
[1723914799572,0.062927,59584.0,59583.0,0.42775271]
[1723914799775,0.352927,59584.0,59583.0,0.3608]
[1723914800564,0.352927,59584.0,59583.0,0.42779515]
[1723914800764,0.352927,59584.0,59583.0,0.3608]
[1723914801161,0.222927,59584.0,59583.0,0.3608]
[1723914801357,0.062928,59583.0,59580.0,0.06699515]
[1723914801564,0.06293,59581.0,59580.0,0.12992615]
[1723914801772,0.20293,59581.0,59580.0,0.12992615]
[1723914801966,0.20293,59581.0,59580.0,0.1299282]
[1723914803667,0.20293,59581.0,59580.0,0.062931]
[1723914804370,0.31393,59581.0,59580.0,0.062931]
[1723914804876,0.31493,59581.0,59580.0,0.062931]
[1723914805967,0.40783,59581.0,59580.0,0.062931]
[1723914806170,0.062931,59580.0,59579.0,0.05044173]
[1723914806367,0.362931,59580.0,59579.0,0.00019257]
[1723914806671,1.16453077,59580.0,59579.0,0.00019257]
[1723914806970,1.56453077,59580.0,59579.0,0.00019257]
[1723914808269,1.50259977,59580.0,59579.0,0.00019257]
[1723914808475,1.10359977,59580.0,59579.0,0.00019257]
[1723914808771,1.50359977,59580.0,59579.0,0.00019257]
[1723914810564,1.10359977,59580.0,59579.0,0.00019257]
[1723914810769,1.19649977,59580.0,59579.0,0.00019257]
[1723914811968,0.60007977,59580.0,59579.0,0.00019257]
[1723914812277,0.63004877,59580.0,59579.0,0.06312557]
[1723914816078,0.53714877,59580.0,59579.0,0.06312557]
[1723914816374,0.03214877,59580.0,59579.0,0.12605857]
[1723914816780,0.03214877,59580.0,59579.0,0.17475857]
[1723914817165,0.03214877,59580.0,59579.0,0.22500773]
[1723914818581,0.03214877,59580.0,59579.0,0.16207473]
[1723914819365,0.18214877,59580.0,59579.0,0.16207473]
[1723914819670,0.18214877,59580.0,59579.0,0.11182557]
[1723914820376,0.18214877,59580.0,59579.0,0.16207473]
[1723914820581,0.18214877,59580.0,59579.0,0.11182557]
[1723914820772,0.03214877,59580.0,59579.0,0.11182557]
[1723914822979,0.00214877,59580.0,59579.0,0.11182557]
[1723914823178,0.03214877,59580.0,59579.0,0.11182557]
[1723914826077,0.18214877,59580.0,59579.0,0.06312557]
[1723914826278,0.24507977,59580.0,59579.0,0.06312557]
[1723914829875,0.24507977,59580.0,59579.0,0.00019257]
[1723914829876,1.80443077,59580.0,59579.0,0.00019257]
[1723914832286,1.86736177,59580.0,59579.0,0.00019257]
[1723914834484,1.63526177,59580.0,59579.0,0.00019257]
[1723914834685,1.86736177,59580.0,59579.0,0.00019257]
[1723914834886,1.86636177,59580.0,59579.0,0.00019257]
[1723914835088,1.86536177,59580.0,59579.0,0.00019257]
[1723914835289,1.86736177,59580.0,59579.0,0.00019257]
[1723914835588,1.86936177,59580.0,59579.0,0.00019257]
[1723914835976,1.87136177,59580.0,59579.0,0.00019257]
[1723914836176,0.67281077,59580.0,59579.0,0.00019257]
[1723914836486,0.60987977,59580.0,59579.0,0.00019257]
[1723914838682,0.60987977,59580.0,59579.0,0.06312457]
[1723914841177,0.60987977,59580.0,59579.0,0.00019257]
[1723914846188,0.67281077,59580.0,59579.0,0.00019257]
[1723914847181,0.60987977,59580.0,59579.0,0.00019257]
[1723914849591,0.24907977,59580.0,59579.0,0.00019257]
[1723914855687,0.67281077,59580.0,59579.0,0.05041705]
[1723914855896,1.87136177,59580.0,59579.0,0.00019257]
[1723914856095,0.062942,59570.0,59569.0,0.05022448]
[1723914856302,0.062942,59570.0,59568.0,0.05022448]
[1723914856303,0.062943,59569.0,59568.0,0.05022448]
[1723914856503,0.062944,59568.0,59567.0,0.05022448]
[1723914856801,0.532944,59568.0,59567.0,0.05022448]
[1723914857303,0.53311603,59568.0,59567.0,0.11316948]
[1723914857486,0.17017203,59568.0,59567.0,0.062945]
[1723914857693,0.17017203,59568.0,59567.0,0.09989426]
[1723914857892,0.17017203,59568.0,59567.0,0.062945]
[1723914858194,0.17117203,59568.0,59567.0,0.062945]
[1723914858394,0.17217203,59568.0,59567.0,0.062945]
[1723914859504,0.00217203,59568.0,59567.0,1.07052972]
[1723914859896,0.00217203,59568.0,59567.0,1.00353252]
[1723914860203,0.00217203,59568.0,59567.0,1.00353086]
[1723914860400,0.17217203,59568.0,59567.0,0.09989086]
[1723914863794,0.00217203,59568.0,59567.0,0.13683613]
[1723914864008,0.15217203,59568.0,59567.0,0.13683613]
[1723914864306,0.15217203,59568.0,59567.0,0.13683566]
[1723914866104,0.17217203,59568.0,59567.0,0.13683566]
[1723914866307,0.17217203,59568.0,59567.0,0.49763566]
[1723914866806,0.23511603,59568.0,59567.0,0.49763753]
[1723914867002,0.23511603,59568.0,59567.0,0.16695313]
[1723914867208,0.23511603,59568.0,59567.0,0.52775328]
[1723914868108,0.17217203,59568.0,59567.0,0.52774912]
[1723914868501,0.17217203,59568.0,59567.0,0.46069193]
[1723914869004,0.17217203,59568.0,59567.0,0.13000219]
[1723914869309,0.17217203,59568.0,59567.0,0.49080219]
[1723914869999,0.17217203,59568.0,59567.0,0.423745]
[1723914870311,0.02217203,59568.0,59567.0,0.423745]
[1723914871312,0.00217203,59568.0,59567.0,0.423745]
[1723914871812,0.00217203,59568.0,59567.0,0.49080192]
[1723914872800,0.17217203,59568.0,59567.0,0.49080192]
[1723914873199,0.23511603,59568.0,59567.0,0.49080192]
[1723914874605,0.23511603,59568.0,59567.0,0.423745]
[1723914874812,0.23511603,59568.0,59567.0,0.4908062]
[1723914875406,0.23511603,59568.0,59567.0,0.423745]
[1723914875805,0.23511603,59568.0,59567.0,0.46069094]
[1723914876010,0.23511603,59568.0,59567.0,0.423745]
[1723914876605,0.17217203,59568.0,59567.0,0.423745]
[1723914878510,0.00217203,59568.0,59567.0,0.423745]
[1723914878906,0.00217203,59568.0,59567.0,0.46069097]
[1723914879310,0.00217203,59568.0,59567.0,0.49763669]
[1723914880707,0.00217203,59568.0,59567.0,0.49763644]
[1723914883712,0.01217203,59568.0,59567.0,0.49763644]
[1723914884218,0.07511603,59568.0,59567.0,0.423745]
[1723914884508,0.07511603,59568.0,59567.0,0.49763612]
[1723914884716,0.07511603,59568.0,59567.0,0.46069056]
[1723914886014,0.07511603,59568.0,59567.0,0.423745]
[1723914886713,0.24511603,59568.0,59567.0,0.423745]
[1723914887114,0.24511603,59568.0,59567.0,0.3608]
[1723914887317,0.24511603,59568.0,59567.0,0.42791453]
[1723914887516,0.062947,59566.0,59563.0,0.062948]
[1723914887814,0.302947,59566.0,59563.0,0.14663485]
[1723914888020,0.302947,59566.0,59563.0,0.062948]
[1723914888021,0.062947,59565.0,59563.0,0.062948]
[1723914888227,0.222947,59565.0,59563.0,0.062948]
[1723914888811,0.242947,59565.0,59563.0,0.062948]
[1723914889315,0.06295,59562.0,59561.0,0.3608]
[1723914889516,0.32295,59562.0,59561.0,0.43469884]
[1723914889821,0.32295,59562.0,59561.0,0.3608]
[1723914890022,0.41585,59562.0,59561.0,0.3608]
[1723914890718,0.41785,59562.0,59561.0,0.3608]
[1723914891317,0.41785,59562.0,59559.0,0.06711465]
[1723914891318,0.062953,59560.0,59559.0,0.06711465]
[1723914891516,0.222953,59560.0,59558.0,0.062955]
[1723914892119,0.16,59560.0,59557.0,0.06711465]
[1723914892320,0.062956,59557.0,59556.0,0.22297065]
[1723914892617,0.06314977,59557.0,59556.0,0.29687383]
[1723914892807,0.06314977,59557.0,59556.0,0.22975918]
[1723914893012,0.06314977,59557.0,59556.0,0.29687383]
[1723914893212,0.06314977,59557.0,59556.0,0.22975913]
[1723914893414,0.06314977,59557.0,59556.0,0.19280754]
[1723914893712,0.06314977,59557.0,59556.0,0.09990754]
[1723914894021,0.06414977,59557.0,59556.0,0.09990754]
[1723914894232,0.06514977,59557.0,59556.0,0.15023197]
[1723914894725,0.07514977,59557.0,59556.0,0.03695154]
[1723914895824,0.24514977,59557.0,59556.0,0.03695154]
[1723914896123,0.23514977,59557.0,59556.0,0.03695154]
[1723914896424,0.24512608,59557.0,59554.0,0.424759]
[1723914896626,0.24512608,59557.0,59555.0,0.03695497]
[1723914896925,0.24512608,59557.0,59554.0,0.49195365]
[1723914897129,0.24512608,59557.0,59555.0,0.09991299]
[1723914897425,0.54297008,59557.0,59554.0,0.00112]
[1723914897725,0.062957,59556.0,59555.0,0.05027258]
[1723914897915,0.332957,59556.0,59555.0,0.05027258]
[1723914898116,0.17,59556.0,59555.0,0.05027258]
[1723914898320,0.17,59556.0,59555.0,0.11323058]
[1723914898523,0.17,59556.0,59555.0,0.155858]
[1723914898721,0.17,59556.0,59555.0,0.20611637]
[1723914899422,0.17,59556.0,59555.0,0.155858]
[1723914900126,0.171,59556.0,59555.0,0.062958]
[1723914900721,0.172,59556.0,59555.0,0.062958]
[1723914905322,0.282,59556.0,59555.0,0.062958]
[1723914905631,0.062959,59554.0,59553.0,0.05025837]
[1723914905817,0.062959,59554.0,59553.0,0.42376]
[1723914905818,0.305859,59554.0,59553.0,0.42376]
[1723914906023,0.305859,59554.0,59553.0,0.47401837]
[1723914906632,0.306859,59554.0,59553.0,0.47401837]
[1723914906929,0.416859,59554.0,59553.0,0.47401837]
[1723914907329,0.417859,59554.0,59553.0,0.47401837]
[1723914908131,0.152,59554.0,59553.0,0.47401837]
[1723914908430,0.152,59554.0,59553.0,0.42376]
[1723914909121,0.152,59554.0,59553.0,0.46071526]
[1723914909323,0.00019377,59557.0,59556.0,0.062957]
[1723914909535,0.00025186,59562.0,59561.0,0.062952]
[1723914909719,0.23025186,59562.0,59561.0,0.56688901]
[1723914910126,0.23025186,59562.0,59561.0,0.516652]
[1723914910533,0.23039943,59562.0,59561.0,0.516652]
[1723914910728,0.23139943,59562.0,59561.0,0.516652]
[1723914911129,0.23139943,59562.0,59561.0,0.58363735]
[1723914911331,0.23139943,59562.0,59561.0,0.55359951]
[1723914911530,0.23139943,59562.0,59561.0,0.61655151]
[1723914911737,0.18941457,59562.0,59561.0,0.61655151]
[1723914911932,0.18941457,59562.0,59561.0,0.52365151]
[1723914912335,0.19041457,59562.0,59561.0,0.52465151]
[1723914913533,0.19041457,59562.0,59561.0,0.96537951]
[1723914913723,0.19041457,59562.0,59561.0,0.063952]
[1723914913929,0.19041457,59562.0,59561.0,0.39874851]
[1723914914123,0.19041457,59562.0,59561.0,0.52869615]
[1723914914531,0.19041457,59562.0,59561.0,0.46170051]
[1723914914732,0.19041457,59562.0,59561.0,0.46170026]
[1723914915433,0.19041457,59562.0,59561.0,0.46169943]
[1723914916431,0.19041457,59562.0,59561.0,0.46169946]
[1723914916728,0.19041457,59562.0,59561.0,0.46169948]
[1723914919433,0.19041457,59562.0,59561.0,0.96537948]
[1723914919934,0.19041457,59562.0,59561.0,1.00232598]
[1723914920436,0.19041457,59562.0,59561.0,0.49864598]
[1723914921536,0.19041457,59562.0,59561.0,0.46169957]
[1723914921926,0.19041457,59562.0,59561.0,0.52868153]
[1723914922129,0.19041457,59562.0,59561.0,0.46169995]
[1723914922437,0.19041457,59562.0,59561.0,0.52868064]
[1723914922438,0.25336457,59562.0,59561.0,0.52868064]
[1723914922832,0.25336457,59562.0,59561.0,0.52868141]
[1723914924435,0.25336457,59562.0,59561.0,0.16788141]
[1723914924745,0.25336457,59562.0,59561.0,0.52868141]
[1723914925036,0.19041457,59562.0,59561.0,0.52868141]
[1723914925545,0.19041457,59562.0,59561.0,0.46170051]
[1723914925734,0.19041457,59562.0,59561.0,0.424752]
[1723914926133,0.19041457,59562.0,59561.0,0.52868081]
[1723914926635,0.19041457,59562.0,59561.0,0.59163264]
[1723914926840,0.19041457,59562.0,59561.0,0.52465195]
[1723914927141,0.19041457,59562.0,59561.0,0.56159748]
[1723914927340,0.19041457,59562.0,59561.0,0.52465074]
[1723914927642,0.19041457,59562.0,59561.0,0.56159754]
[1723914928044,0.19041457,59562.0,59561.0,0.49864554]
[1723914929742,0.19041457,59562.0,59561.0,0.49864629]
[1723914930546,0.19041457,59562.0,59561.0,0.46169874]
[1723914930740,0.19041457,59562.0,59561.0,0.49864575]
[1723914933840,0.19041457,59562.0,59561.0,0.59154575]
[1723914934642,0.19041457,59562.0,59561.0,0.19379874]
[1723914934849,0.19041457,59562.0,59561.0,0.59154593]
[1723914936150,0.19041457,59562.0,59561.0,0.55459874]
[1723914936550,0.19041457,59562.0,59561.0,0.46169874]
[1723914937060,0.19041457,59562.0,59561.0,0.54538559]
[1723914937238,0.19041457,59562.0,59561.0,0.424752]
[1723914937443,0.25336457,59562.0,59561.0,0.424752]
[1723914938250,0.25336457,59562.0,59561.0,0.001]
[1723914938251,1.21999457,59562.0,59561.0,0.001]
[1723914938447,0.062956,59557.0,59556.0,0.42811789]
[1723914938747,0.866712,59557.0,59556.0,0.00025186]
[1723914939948,0.867712,59557.0,59556.0,0.00025186]
[1723914940751,0.868712,59557.0,59556.0,0.00025186]
[1723914941250,0.867712,59557.0,59556.0,0.00025186]
[1723914941641,0.960612,59557.0,59556.0,0.00025186]
[1723914942038,0.959612,59557.0,59556.0,0.00025186]
[1723914942248,0.960612,59557.0,59556.0,0.00025186]
[1723914942644,0.97074304,59557.0,59556.0,0.00025186]
[1723914943341,0.90778704,59557.0,59556.0,0.00025186]
[1723914944254,0.81488704,59557.0,59556.0,0.00025186]
[1723914947752,0.87784304,59557.0,59556.0,0.00025186]
[1723914948554,0.81488704,59557.0,59556.0,0.00025186]
[1723914949152,0.87784304,59557.0,59556.0,0.00025186]
[1723914949355,0.81488704,59557.0,59556.0,0.00025186]
[1723914949652,1.78171061,59557.0,59556.0,0.00025186]
[1723914950356,2.09818745,59557.0,59556.0,0.00025186]
[1723914951254,2.09803988,59557.0,59556.0,0.00025186]
[1723914951550,2.03508388,59557.0,59556.0,0.00025186]
[1723914951756,2.09818745,59557.0,59556.0,0.00025186]
[1723914953251,0.062974,59540.0,59536.0,0.05031013]
[1723914953458,0.062974,59540.0,59536.0,0.11328713]
[1723914953459,0.00014757,59539.0,59536.0,0.11328713]
[1723914953656,0.062976,59538.0,59536.0,0.062977]
[1723914953857,0.062977,59537.0,59536.0,0.062977]
[1723914954054,0.232977,59537.0,59536.0,0.062977]
[1723914955159,0.232977,59537.0,59536.0,0.044977]
[1723914955459,0.062979,59535.0,59534.0,0.00012102]
[1723914955647,0.232979,59535.0,59534.0,0.00012102]
[1723914956255,0.332979,59535.0,59534.0,0.00012102]
[1723914956658,0.693779,59535.0,59534.0,0.00012102]
[1723914957048,0.694779,59535.0,59534.0,0.00012102]
[1723914957253,0.989958,59535.0,59534.0,0.00012102]
[1723914957653,1.95700457,59535.0,59534.0,0.00012102]
[1723914958153,1.19884657,59535.0,59534.0,0.00012102]
[1723914958553,1.20862172,59535.0,59534.0,0.00012102]
[1723914959353,1.44082172,59535.0,59534.0,0.00012102]
[1723914959858,1.83982172,59535.0,59534.0,0.00012102]
[1723914960158,1.90280072,59535.0,59534.0,0.00012102]
[1723914960365,1.83982172,59535.0,59534.0,0.00012102]
[1723914960556,1.14464272,59535.0,59534.0,0.00012102]
[1723914960759,0.36094757,59535.0,59534.0,0.06310102]
[1723914961758,0.57392657,59535.0,59534.0,0.00012102]
[1723914962153,1.89082557,59535.0,59534.0,0.00012102]
[1723914962561,1.95380457,59535.0,59534.0,0.00012102]
[1723914965864,0.062995,59520.0,59519.0,0.3608]
[1723914966061,0.063,59515.0,59512.0,0.424923]
[1723914966256,0.223,59515.0,59512.0,0.423803]
[1723914966464,0.233,59515.0,59512.0,0.423803]
[1723914966860,0.00015233,59514.0,59512.0,0.063003]
[1723914967164,0.16015233,59514.0,59513.0,0.063002]
[1723914968367,0.22315333,59514.0,59510.0,0.063005]
[1723914968561,0.22315333,59514.0,59508.0,0.3608]
[1723914968970,0.22315333,59514.0,59511.0,0.063004]
[1723914969467,0.063004,59512.0,59508.0,0.3608]
[1723914969863,0.063004,59512.0,59510.0,0.063005]
[1723914970064,0.233004,59512.0,59510.0,0.063005]
[1723914970564,0.17,59512.0,59511.0,0.063004]
[1723914970867,0.17,59512.0,59508.0,0.423807]
[1723914971263,0.063005,59511.0,59508.0,0.423807]
[1723914971465,0.16,59511.0,59508.0,0.3608]
[1723914971667,0.063006,59510.0,59508.0,0.3608]
[1723914971860,0.233006,59510.0,59508.0,0.3608]
[1723914972263,0.233006,59510.0,59509.0,0.063006]
[1723914972472,0.233006,59510.0,59497.0,0.05031013]
[1723914972473,0.39,59510.0,59497.0,0.05031013]
[1723914972666,0.39,59510.0,59504.0,0.0451]
[1723914972667,0.453006,59510.0,59504.0,0.0451]
[1723914972868,0.3608,59508.0,59504.0,0.0451]
[1723914973068,0.5308,59508.0,59504.0,0.0451]
[1723914973466,0.5408,59508.0,59504.0,0.0451]
[1723914973666,0.5308,59508.0,59504.0,0.0451]
[1723914973968,0.17,59508.0,59507.0,0.063009]
[1723914975160,0.001,59510.0,59509.0,0.063007]
[1723914975365,0.161,59510.0,59509.0,0.063007]
[1723914975566,0.16,59510.0,59509.0,0.063007]
[1723914975873,0.16,59510.0,59509.0,0.156007]
[1723914976467,0.161,59510.0,59509.0,0.156007]
[1723914976670,0.001,59510.0,59509.0,0.219014]
[1723914977263,0.001,59510.0,59509.0,0.282021]
[1723914977467,0.00025208,59513.0,59512.0,0.063003]
[1723914977767,0.00025208,59513.0,59512.0,0.579806]
[1723914978573,0.23524,59521.0,59512.0,0.516803]
[1723914978772,0.03,59521.0,59520.0,0.155995]
[1723914978975,0.15531098,59527.0,59521.0,0.062994]
[1723914979281,0.15531098,59527.0,59526.0,0.423789]
[1723914979470,0.23528,59533.0,59526.0,0.86476]
[1723914979773,0.23528,59533.0,59532.0,0.155982]
[1723914980071,0.23528,59533.0,59532.0,0.062982]
[1723914980072,0.23539626,59533.0,59532.0,0.062982]
[1723914980772,0.23539626,59533.0,59532.0,0.423782]
[1723914981275,0.23539626,59533.0,59532.0,0.47390978]
[1723914981779,0.23539626,59533.0,59532.0,0.423782]
[1723914982371,0.23539626,59533.0,59532.0,0.424782]
[1723914983075,0.23539626,59533.0,59532.0,0.423782]
[1723914983274,0.23639626,59533.0,59532.0,0.424782]
[1723914985077,0.23539626,59533.0,59532.0,0.424782]
[1723914985282,0.23639626,59533.0,59532.0,0.424782]
[1723914985470,0.23639626,59533.0,59532.0,0.47492549]